fUST/lending_fUST_20240818
["ID","MTS","AMOUNT","RATE_DAILY","PERIOD"]
[335216345,1723986805223,-1587.07609115,0.00014519,3]
[335216346,1723986827663,-2005.0,0.00016712,10]
[335216347,1723986829414,779.97165007,6.641e-05,2]
[335216353,1723986995632,166.4,5.479e-05,2]
[335216354,1723987026317,42392.12136225,8.05e-05,2]
[335216355,1723987042226,2005.0,0.00016438,10]
[335216356,1723987042491,2005.0,0.00016712,10]
[335216362,1723987157285,7012.68235792,0.00012999,2]
[335216363,1723987178355,273.37336231,0.00013,2]
[335216369,1723987280311,938.91313571,0.00013,2]
[335216370,1723987295036,166.4,5.479e-05,2]
[335216371,1723987305756,273.37336231,0.00013,2]
[335216372,1723987314430,200.0,0.00013,2]
[335216374,1723987330511,273.37336231,0.00013,2]
[335216375,1723987346593,273.37336231,0.00013,2]
[335216378,1723987464282,1189.97591678,0.00012999,2]
[335216381,1723987482229,2451.22306829,0.00013,2]
[335216385,1723987595263,166.4,5.479e-05,2]
[335216388,1723987646130,-493.25192424,0.00013025,2]
[335216389,1723987646154,-156.84074619,0.00013051,2]
[335216390,1723987646176,-72.36953659,0.00013333,2]
[335216392,1723987657100,20352.6084039,0.00012971,2]
[335216451,1723987831915,-1701.05344823,0.00012971,2]
[335216455,1723987831942,-938.22642531,0.00012971,2]
[335216497,1723987837764,-420.30828837,0.00012971,2]
[335216498,1723987837779,-1487.80343419,0.00012971,2]
[335216499,1723987837790,-779.97165007,0.00012985,2]
[335216500,1723987837801,-1260.9332948,0.00013597,2]
[335216501,1723987837810,-489.31082202,0.00013698,2]
[335216502,1723987837821,-3000.0,0.00013699,2]
[335216503,1723987837830,-312.79107,0.00013852,2]
[335216504,1723987837839,-157.559216,0.00014061,2]
[335216505,1723987837849,-157.559216,0.00014134,2]
[335216506,1723987837859,-157.559216,0.00014208,2]
[335216507,1723987837869,-156.84074619,0.00014245,2]
[335216508,1723987837878,-538.87271165,0.00014245,2]
[335216509,1723987837887,-184.9181239,0.00014247,2]
[335216511,1723987837897,-157.559216,0.00014281,2]
[335216512,1723987837906,-157.559216,0.00014354,2]
[335216513,1723987837916,-157.559216,0.00014427,2]
[335216514,1723987837926,-157.559216,0.00014501,2]
[335216515,1723987837935,-157.559216,0.00014574,2]
[335216516,1723987837945,-157.559216,0.00014647,2]
[335216517,1723987837954,-157.559216,0.0001472,2]
[335216518,1723987837963,-157.559216,0.00014794,2]
[335216519,1723987837972,-500.0,0.00014848,2]
[335216520,1723987837983,-5244.23039316,0.00015931,2]
[335216521,1723987837995,-247.91301608,0.00016,2]
[335216522,1723987838006,-3367.39959011,0.00016237,2]
[335216523,1723987838016,-5327.60651547,0.00016247,2]
[335216524,1723987838028,-3400.62334677,0.00016328,2]
[335216525,1723987838038,-2000.0,0.00016328,2]
[335216526,1723987838048,-500.0,0.00016336,2]
[335216527,1723987838059,-248.69709065,0.00016336,2]
[335216528,1723987838070,-558.60794433,0.00016336,2]
[335216529,1723987838080,-17036.69485473,0.00016338,2]
[335216530,1723987838090,-187.51320731,0.00016338,2]
[335216531,1723987838099,-299.31103125,0.00016427,2]
[335216532,1723987838108,-500.0,0.00016427,2]
[335216533,1723987838118,-500.0,0.00016427,2]
[335216534,1723987838127,-500.0,0.00016427,2]
[335216535,1723987838136,-500.0,0.00016427,2]
[335216536,1723987838146,-508.6856202,0.00016427,2]
[335216537,1723987838156,-500.0,0.00016427,2]
[335216538,1723987838165,-250.0,0.00016427,2]
[335216539,1723987838176,-500.0,0.00016427,2]
[335216540,1723987838186,-500.0,0.00016427,2]
[335216541,1723987838196,-182.29383723,0.00016427,2]
[335216542,1723987838206,-315698.891095,0.00016428,2]
[335216543,1723987838217,-396.29599239,0.00016438,2]
[335216544,1723987838227,-432.03554059,0.00016438,2]
[335216545,1723987838237,-500.0,0.00016438,2]
[335216546,1723987838246,-500.0,0.00016438,2]
[335216547,1723987838256,-500.0,0.00016438,2]
[335216548,1723987838268,-676.41,0.00016438,2]
[335216549,1723987838278,-500.0,0.00016438,2]
[335216550,1723987838287,-500.0,0.00016438,2]
[335216551,1723987838303,-500.0,0.00016438,2]
[335216552,1723987838312,-500.0,0.00016438,2]
[335216553,1723987838323,-500.0,0.00016438,2]
[335216554,1723987838333,-500.0,0.00016438,2]
[335216555,1723987838348,-554.6380685,0.00016438,2]
[335216556,1723987838359,-501.05059056,0.00016438,2]
[335216557,1723987838371,-571.39,0.00016438,2]
[335216558,1723987838382,-309.0108856,0.00016438,2]
[335216559,1723987838394,-500.0,0.00016438,2]
[335216560,1723987838406,-514.58,0.00016438,2]
[335216561,1723987838416,-500.0,0.00016438,2]
[335216562,1723987838427,-507.80802781,0.00016438,2]
[335216563,1723987838439,-500.0,0.00016438,2]
[335216564,1723987838448,-500.0,0.00016438,2]
[335216565,1723987838458,-245.65795402,0.00016438,2]
[335216566,1723987838469,-500.0,0.00016438,2]
[335216567,1723987838479,-500.0,0.00016438,2]
[335216568,1723987838490,-500.0,0.00016438,2]
[335216569,1723987838500,-500.0,0.00016438,2]
[335216570,1723987838509,-500.0,0.00016438,2]
[335216571,1723987838520,-500.0,0.00016438,2]
[335216572,1723987838533,-167.27726661,0.00016438,2]
[335216573,1723987838544,-500.0,0.00016438,2]
[335216574,1723987838554,-500.0,0.00016438,2]
[335216575,1723987838565,-417.33335301,0.00016438,2]
[335216576,1723987838578,-500.0,0.00016438,2]
[335216577,1723987838714,-500.0,0.00016438,2]
[335216578,1723987838725,-500.0,0.00016438,2]
[335216579,1723987838734,-500.0,0.00016438,2]
[335216580,1723987838745,-500.0,0.00016438,2]
[335216581,1723987838755,-612.12252098,0.00016438,2]
[335216582,1723987838764,-500.0,0.00016438,2]
[335216583,1723987838776,-500.0,0.00016438,2]
[335216584,1723987838786,-660.33,0.00016438,2]
[335216585,1723987838798,-674.77,0.00016438,2]
[335216586,1723987838808,-500.0,0.00016438,2]
[335216587,1723987838819,-500.0,0.00016438,2]
[335216588,1723987838831,-502.75146287,0.00016438,2]
[335216589,1723987838843,-504.08150754,0.00016438,2]
[335216590,1723987838852,-500.0,0.00016438,2]
[335216591,1723987838864,-500.0,0.00016438,2]
[335216592,1723987838875,-252.00719866,0.00016438,2]
[335216593,1723987838886,-500.0,0.00016438,2]
[335216594,1723987838896,-500.0,0.00016438,2]
[335216595,1723987838906,-500.0,0.00016438,2]
[335216596,1723987838917,-329.41772764,0.00016438,2]
[335216597,1723987838929,-750.74,0.00016438,2]
[335216598,1723987838940,-500.0,0.00016438,2]
[335216599,1723987838950,-500.0,0.00016438,2]
[335216600,1723987838959,-500.0,0.00016438,2]
[335216601,1723987838969,-500.0,0.00016438,2]
[335216602,1723987838978,-505.3599567,0.00016438,2]
[335216603,1723987838988,-500.0,0.00016438,2]
[335216604,1723987838997,-538.45,0.00016438,2]
[335216605,1723987839007,-500.0,0.00016438,2]
[335216606,1723987839016,-500.0,0.00016438,2]
[335216607,1723987839026,-500.0,0.00016438,2]
[335216608,1723987839035,-515.51,0.00016438,2]
[335216609,1723987839045,-500.0,0.00016438,2]
[335216610,1723987839055,-150.0,0.00016438,2]
[335216611,1723987839064,-228.13925843,0.00016438,2]
[335216612,1723987839073,-500.0,0.00016438,2]
[335216613,1723987839083,-756.75,0.00016438,2]
[335216614,1723987839093,-500.0,0.00016438,2]
[335216615,1723987839102,-500.0,0.00016438,2]
[335216616,1723987839111,-501.6854391,0.00016438,2]
[335216617,1723987839122,-500.0,0.00016438,2]
[335216618,1723987839131,-500.0,0.00016438,2]
[335216619,1723987839141,-500.0,0.00016438,2]
[335216620,1723987839150,-500.0,0.00016438,2]
[335216621,1723987839160,-1355.37,0.00016438,2]
[335216622,1723987839169,-500.0,0.00016438,2]
[335216623,1723987839179,-418.11879524,0.00016438,2]
[335216624,1723987839188,-500.0,0.00016438,2]
[335216625,1723987839198,-500.0,0.00016438,2]
[335216626,1723987839207,-500.0,0.00016438,2]
[335216627,1723987839217,-500.0,0.00016438,2]
[335216628,1723987839226,-500.0,0.00016438,2]
[335216629,1723987839236,-500.0,0.00016438,2]
[335216630,1723987839245,-500.0,0.00016438,2]
[335216631,1723987839255,-611.83015375,0.00016438,2]
[335216632,1723987839264,-500.0,0.00016438,2]
[335216633,1723987839273,-500.0,0.00016438,2]
[335216634,1723987839282,-500.0,0.00016438,2]
[335216635,1723987839292,-500.0,0.00016438,2]
[335216636,1723987839305,-500.0,0.00016438,2]
[335216637,1723987839314,-500.0,0.00016438,2]
[335216638,1723987839323,-500.0,0.00016438,2]
[335216639,1723987839332,-500.0,0.00016438,2]
[335216640,1723987839343,-500.0,0.00016438,2]
[335216641,1723987839352,-519.3786446,0.00016438,2]
[335216642,1723987839361,-500.0,0.00016438,2]
[335216643,1723987839372,-502.8264722,0.00016438,2]
[335216644,1723987839382,-500.0,0.00016438,2]
[335216645,1723987839392,-500.0,0.00016438,2]
[335216646,1723987839401,-500.0,0.00016438,2]
[335216647,1723987839411,-500.0,0.00016438,2]
[335216648,1723987839420,-500.0,0.00016438,2]
[335216649,1723987839430,-500.0,0.00016438,2]
[335216650,1723987839439,-500.0,0.00016438,2]
[335216651,1723987839449,-200.0,0.00016438,2]
[335216653,1723987839458,-500.0,0.00016438,2]
[335216654,1723987839467,-500.0,0.00016438,2]
[335216655,1723987839477,-502.85908508,0.00016438,2]
[335216656,1723987839486,-500.0,0.00016438,2]
[335216657,1723987839495,-671.04,0.00016438,2]
[335216659,1723987839506,-500.0,0.00016438,2]
[335216661,1723987839516,-500.0,0.00016438,2]
[335216663,1723987839526,-500.0,0.00016438,2]
[335216664,1723987839535,-500.0,0.00016438,2]
[335216665,1723987839546,-500.0,0.00016438,2]
[335216666,1723987839555,-506.77248503,0.00016438,2]
[335216667,1723987839565,-500.0,0.00016438,2]
[335216668,1723987839574,-500.0,0.00016438,2]
[335216670,1723987839584,-500.0,0.00016438,2]
[335216671,1723987839593,-500.0,0.00016438,2]
[335216673,1723987839604,-500.0,0.00016438,2]
[335216675,1723987839613,-500.0,0.00016438,2]
[335216677,1723987839622,-506.40033661,0.00016438,2]
[335216679,1723987839631,-500.0,0.00016438,2]
[335216681,1723987839641,-500.81633259,0.00016438,2]
[335216683,1723987839651,-500.0,0.00016438,2]
[335216684,1723987839660,-500.0,0.00016438,2]
[335216686,1723987839670,-500.0,0.00016438,2]
[335216688,1723987839679,-500.0,0.00016438,2]
[335216690,1723987839689,-500.0,0.00016438,2]
[335216691,1723987839698,-500.0,0.00016438,2]
[335216693,1723987839708,-500.0,0.00016438,2]
[335216694,1723987839718,-501.12137864,0.00016438,2]
[335216696,1723987839727,-622.34349143,0.00016438,2]
[335216697,1723987839737,-500.0,0.00016438,2]
[335216698,1723987839749,-500.0,0.00016438,2]
[335216699,1723987839762,-500.0,0.00016438,2]
[335216700,1723987839772,-500.0,0.00016438,2]
[335216701,1723987839782,-500.0,0.00016438,2]
[335216702,1723987839792,-500.0,0.00016438,2]
[335216703,1723987839803,-500.0,0.00016438,2]
[335216704,1723987839812,-510.97364611,0.00016438,2]
[335216705,1723987839821,-500.0,0.00016438,2]
[335216706,1723987839830,-467.06200236,0.00016438,2]
[335216707,1723987839840,-500.0,0.00016438,2]
[335216708,1723987839849,-500.0,0.00016438,2]
[335216709,1723987839859,-500.0,0.00016438,2]
[335216710,1723987839868,-511.00267424,0.00016438,2]
[335216711,1723987839878,-391.39034035,0.00016438,2]
[335216712,1723987839888,-500.0,0.00016438,2]
[335216713,1723987839897,-500.0,0.00016438,2]
[335216715,1723987839907,-500.0,0.00016438,2]
[335216717,1723987839916,-379.23394776,0.00016438,2]
[335216719,1723987839926,-500.0,0.00016438,2]
[335216721,1723987839935,-500.0,0.00016438,2]
[335216722,1723987839945,-500.0,0.00016438,2]
[335216723,1723987839959,-500.0,0.00016438,2]
[335216724,1723987839969,-500.0,0.00016438,2]
[335216725,1723987839979,-620.86,0.00016438,2]
[335216726,1723987839990,-500.0,0.00016438,2]
[335216727,1723987840000,-363.00851937,0.00016438,2]
[335216728,1723987840010,-500.0,0.00016438,2]
[335216729,1723987840022,-503.19594722,0.00016438,2]
[335216730,1723987840032,-500.0,0.00016438,2]
[335216731,1723987840042,-500.0,0.00016438,2]
[335216732,1723987840055,-500.0,0.00016438,2]
[335216733,1723987840064,-500.0,0.00016438,2]
[335216734,1723987840075,-500.0,0.00016438,2]
[335216735,1723987840085,-500.0,0.00016438,2]
[335216736,1723987840095,-391.50497632,0.00016438,2]
[335216737,1723987840104,-651.35,0.00016438,2]
[335216738,1723987840114,-579.51,0.00016438,2]
[335216739,1723987840125,-500.0,0.00016438,2]
[335216740,1723987840136,-500.0,0.00016438,2]
[335216741,1723987840147,-500.0,0.00016438,2]
[335216742,1723987840158,-500.0,0.00016438,2]
[335216743,1723987840169,-500.0,0.00016438,2]
[335216744,1723987840180,-500.0,0.00016438,2]
[335216745,1723987840189,-500.0,0.00016438,2]
[335216746,1723987840201,-834.08,0.00016438,2]
[335216747,1723987840210,-500.0,0.00016438,2]
[335216748,1723987840220,-511.45949116,0.00016438,2]
[335216749,1723987840231,-505.04959204,0.00016438,2]
[335216750,1723987840242,-500.0,0.00016438,2]
[335216751,1723987840252,-500.0,0.00016438,2]
[335216752,1723987840264,-500.0,0.00016438,2]
[335216753,1723987840274,-500.0,0.00016438,2]
[335216754,1723987840284,-500.0,0.00016438,2]
[335216755,1723987840298,-500.0,0.00016438,2]
[335216756,1723987840308,-500.0,0.00016438,2]
[335216757,1723987840318,-500.0,0.00016438,2]
[335216758,1723987840328,-500.0,0.00016438,2]
[335216759,1723987840339,-500.0,0.00016438,2]
[335216760,1723987840352,-500.0,0.00016438,2]
[335216761,1723987840363,-500.0,0.00016438,2]
[335216762,1723987840376,-500.0,0.00016438,2]
[335216763,1723987840387,-495.78922425,0.00016438,2]
[335216764,1723987840398,-500.0,0.00016438,2]
[335216765,1723987840409,-500.0,0.00016438,2]
[335216766,1723987840422,-513.78946018,0.00016438,2]
[335216767,1723987840431,-500.0,0.00016438,2]
[335216768,1723987840442,-500.0,0.00016438,2]
[335216769,1723987840451,-500.0,0.00016438,2]
[335216770,1723987840461,-500.0,0.00016438,2]
[335216771,1723987840471,-500.0,0.00016438,2]
[335216772,1723987840483,-500.0,0.00016438,2]
[335216773,1723987840493,-503.20256977,0.00016438,2]
[335216774,1723987840502,-500.0,0.00016438,2]
[335216775,1723987840513,-598.23,0.00016438,2]
[335216776,1723987840522,-500.0,0.00016438,2]
[335216777,1723987840533,-500.0,0.00016438,2]
[335216778,1723987840544,-500.0,0.00016438,2]
[335216779,1723987840555,-171.40676647,0.00016438,2]
[335216780,1723987840565,-500.0,0.00016438,2]
[335216781,1723987840575,-500.0,0.00016438,2]
[335216782,1723987840586,-500.0,0.00016438,2]
[335216783,1723987840597,-694.6,0.00016438,2]
[335216784,1723987840606,-500.0,0.00016438,2]
[335216785,1723987840616,-500.0,0.00016438,2]
[335216786,1723987840625,-500.0,0.00016438,2]
[335216787,1723987840635,-500.42374087,0.00016438,2]
[335216788,1723987840645,-506.70627482,0.00016438,2]
[335216789,1723987840655,-571.47,0.00016438,2]
[335216790,1723987840665,-500.0,0.00016438,2]
[335216791,1723987840674,-500.0,0.00016438,2]
[335216792,1723987840684,-632.06211442,0.00016438,2]
[335216793,1723987840694,-1035.93,0.00016438,2]
[335216794,1723987840704,-500.0,0.00016438,2]
[335216795,1723987840714,-500.0,0.00016438,2]
[335216796,1723987840725,-500.0,0.00016438,2]
[335216797,1723987840735,-725.25,0.00016438,2]
[335216798,1723987840745,-504.50626251,0.00016438,2]
[335216799,1723987840755,-500.0,0.00016438,2]
[335216800,1723987840765,-500.0,0.00016438,2]
[335216801,1723987840778,-500.0,0.00016438,2]
[335216802,1723987840788,-500.0,0.00016438,2]
[335216803,1723987840802,-500.0,0.00016438,2]
[335216804,1723987840812,-500.0,0.00016438,2]
[335216805,1723987840823,-500.0,0.00016438,2]
[335216806,1723987840833,-500.0,0.00016438,2]
[335216807,1723987840843,-500.0,0.00016438,2]
[335216808,1723987840854,-500.0,0.00016438,2]
[335216809,1723987840865,-500.0,0.00016438,2]
[335216810,1723987840874,-484.98220317,0.00016438,2]
[335216811,1723987840884,-500.0,0.00016438,2]
[335216812,1723987840894,-500.0,0.00016438,2]
[335216813,1723987840906,-500.0,0.00016438,2]
[335216814,1723987840916,-500.0,0.00016438,2]
[335216815,1723987840926,-500.0,0.00016438,2]
[335216816,1723987840935,-500.0,0.00016438,2]
[335216817,1723987840948,-500.0,0.00016438,2]
[335216818,1723987840958,-1065.61,0.00016438,2]
[335216819,1723987840967,-500.0,0.00016438,2]
[335216820,1723987840977,-500.0,0.00016438,2]
[335216821,1723987840987,-500.0,0.00016438,2]
[335216822,1723987840996,-500.0,0.00016438,2]
[335216823,1723987841006,-500.0,0.00016438,2]
[335216824,1723987841016,-500.0,0.00016438,2]
[335216825,1723987841026,-500.0,0.00016438,2]
[335216826,1723987841036,-500.0,0.00016438,2]
[335216827,1723987841048,-500.0,0.00016438,2]
[335216828,1723987841058,-501.50506461,0.00016438,2]
[335216829,1723987841068,-500.0,0.00016438,2]
[335216830,1723987841078,-500.0,0.00016438,2]
[335216831,1723987841087,-500.0,0.00016438,2]
[335216832,1723987841096,-500.0,0.00016438,2]
[335216833,1723987841106,-502.12800461,0.00016438,2]
[335216834,1723987841225,-500.0,0.00016438,2]
[335216835,1723987841235,-500.0,0.00016438,2]
[335216836,1723987841244,-688.4,0.00016438,2]
[335216837,1723987841253,-500.65763525,0.00016438,2]
[335216838,1723987841262,-500.0,0.00016438,2]
[335216839,1723987841272,-500.0,0.00016438,2]
[335216840,1723987841281,-686.8,0.00016438,2]
[335216841,1723987841290,-500.0,0.00016438,2]
[335216842,1723987841303,-500.0,0.00016438,2]
[335216843,1723987841313,-500.0,0.00016438,2]
[335216844,1723987841322,-500.0,0.00016438,2]
[335216845,1723987841331,-500.0,0.00016438,2]
[335216846,1723987841340,-500.0,0.00016438,2]
[335216847,1723987841350,-500.0,0.00016438,2]
[335216848,1723987841359,-508.1681348,0.00016438,2]
[335216849,1723987841369,-500.0,0.00016438,2]
[335216850,1723987841380,-501.64080858,0.00016438,2]
[335216851,1723987841389,-500.0,0.00016438,2]
[335216852,1723987841398,-500.0,0.00016438,2]
[335216853,1723987841407,-645.38,0.00016438,2]
[335216854,1723987841416,-500.0,0.00016438,2]
[335216855,1723987841427,-500.0,0.00016438,2]
[335216856,1723987841436,-725.37,0.00016438,2]
[335216857,1723987841446,-500.0,0.00016438,2]
[335216858,1723987841455,-500.0,0.00016438,2]
[335216859,1723987841465,-500.0,0.00016438,2]
[335216860,1723987841474,-500.0,0.00016438,2]
[335216861,1723987841483,-500.0,0.00016438,2]
[335216862,1723987841493,-645.52102326,0.00016438,2]
[335216863,1723987841502,-500.0,0.00016438,2]
[335216864,1723987841511,-505.45642932,0.00016438,2]
[335216865,1723987841521,-500.0,0.00016438,2]
[335216866,1723987841530,-508.60930539,0.00016438,2]
[335216867,1723987841539,-500.0,0.00016438,2]
[335216868,1723987841548,-869.12,0.00016438,2]
[335216869,1723987841557,-500.0,0.00016438,2]
[335216870,1723987841566,-500.0,0.00016438,2]
[335216871,1723987841575,-500.0,0.00016438,2]
[335216872,1723987841584,-500.0,0.00016438,2]
[335216873,1723987841594,-510.5141272,0.00016438,2]
[335216874,1723987841604,-500.0,0.00016438,2]
[335216875,1723987841614,-500.0,0.00016438,2]
[335216876,1723987841624,-500.0,0.00016438,2]
[335216877,1723987841633,-500.0,0.00016438,2]
[335216878,1723987841643,-500.0,0.00016438,2]
[335216879,1723987841652,-500.0,0.00016438,2]
[335216880,1723987841662,-500.0,0.00016438,2]
[335216881,1723987841672,-1392.6,0.00016438,2]
[335216882,1723987841681,-549.8,0.00016438,2]
[335216883,1723987841690,-500.0,0.00016438,2]
[335216884,1723987841699,-500.0,0.00016438,2]
[335216885,1723987841708,-500.0,0.00016438,2]
[335216886,1723987841717,-500.0,0.00016438,2]
[335216887,1723987841727,-500.0,0.00016438,2]
[335216888,1723987841737,-500.0,0.00016438,2]
[335216889,1723987841746,-500.0,0.00016438,2]
[335216890,1723987841755,-500.0,0.00016438,2]
[335216891,1723987841764,-500.0,0.00016438,2]
[335216892,1723987841773,-500.0,0.00016438,2]
[335216893,1723987841783,-500.0,0.00016438,2]
[335216894,1723987841793,-305.87672062,0.00016438,2]
[335216895,1723987841804,-500.0,0.00016438,2]
[335216896,1723987841813,-500.0,0.00016438,2]
[335216897,1723987841822,-500.0,0.00016438,2]
[335216898,1723987841831,-500.0,0.00016438,2]
[335216899,1723987841840,-500.0,0.00016438,2]
[335216900,1723987841849,-623.23,0.00016438,2]
[335216901,1723987841858,-435.9610758,0.00016438,2]
[335216902,1723987841868,-500.0,0.00016438,2]
[335216903,1723987841877,-506.51232328,0.00016438,2]
[335216904,1723987841886,-500.0,0.00016438,2]
[335216905,1723987841895,-500.0,0.00016438,2]
[335216906,1723987841905,-500.0,0.00016438,2]
[335216907,1723987841914,-504.50137407,0.00016438,2]
[335216908,1723987841923,-500.0,0.00016438,2]
[335216909,1723987841933,-500.0,0.00016438,2]
[335216910,1723987841942,-500.0,0.00016438,2]
[335216911,1723987841951,-599.68333757,0.00016438,2]
[335216912,1723987841962,-500.96333795,0.00016438,2]
[335216913,1723987841972,-608.45,0.00016438,2]
[335216914,1723987841982,-500.0,0.00016438,2]
[335216915,1723987841992,-708.08,0.00016438,2]
[335216916,1723987842002,-500.0,0.00016438,2]
[335216917,1723987842012,-593.36,0.00016438,2]
[335216918,1723987842021,-500.0,0.00016438,2]
[335216919,1723987842032,-376.41422012,0.00016438,2]
[335216920,1723987842042,-520.14077379,0.00016438,2]
[335216921,1723987842052,-500.0,0.00016438,2]
[335216922,1723987842062,-690.29,0.00016438,2]
[335216923,1723987842072,-500.0,0.00016438,2]
[335216924,1723987842082,-1034.16,0.00016438,2]
[335216925,1723987842092,-501.4158508,0.00016438,2]
[335216926,1723987842101,-509.60882877,0.00016438,2]
[335216927,1723987842111,-500.0,0.00016438,2]
[335216928,1723987842121,-500.0,0.00016438,2]
[335216929,1723987842131,-500.0,0.00016438,2]
[335216930,1723987842141,-500.0,0.00016438,2]
[335216931,1723987842151,-500.0,0.00016438,2]
[335216932,1723987842160,-500.0,0.00016438,2]
[335216933,1723987842170,-500.0,0.00016438,2]
[335216934,1723987842180,-500.0,0.00016438,2]
[335216935,1723987842190,-500.0,0.00016438,2]
[335216936,1723987842201,-610.08853085,0.00016438,2]
[335216937,1723987842211,-500.0,0.00016438,2]
[335216938,1723987842221,-526.92,0.00016438,2]
[335216939,1723987842231,-502.59079864,0.00016438,2]
[335216940,1723987842241,-655.73,0.00016438,2]
[335216941,1723987842250,-500.0,0.00016438,2]
[335216942,1723987842261,-500.0,0.00016438,2]
[335216943,1723987842273,-500.0,0.00016438,2]
[335216945,1723987842283,-500.0,0.00016438,2]
[335216946,1723987842293,-500.0,0.00016438,2]
[335216947,1723987842306,-743.79,0.00016438,2]
[335216948,1723987842315,-500.0,0.00016438,2]
[335216949,1723987842325,-512.94873422,0.00016438,2]
[335216950,1723987842335,-500.0,0.00016438,2]
[335216951,1723987842344,-500.0,0.00016438,2]
[335216952,1723987842354,-500.0,0.00016438,2]
[335216953,1723987842364,-500.0,0.00016438,2]
[335216955,1723987842373,-500.0,0.00016438,2]
[335216957,1723987842384,-752.56,0.00016438,2]
[335216959,1723987842394,-242.74466697,0.00016438,2]
[335216961,1723987842403,-500.0,0.00016438,2]
[335216963,1723987842413,-500.0,0.00016438,2]
[335216965,1723987842423,-732.89,0.00016438,2]
[335216967,1723987842433,-151.0,0.00016438,2]
[335216970,1723987842443,-508.3067394,0.00016438,2]
[335216971,1723987842453,-500.0,0.00016438,2]
[335216973,1723987842463,-500.0,0.00016438,2]
[335216974,1723987842473,-500.0,0.00016438,2]
[335216975,1723987842482,-500.0,0.00016438,2]
[335216976,1723987842493,-500.0,0.00016438,2]
[335216977,1723987842503,-151.0,0.00016438,2]
[335216978,1723987842512,-500.0,0.00016438,2]
[335216979,1723987842522,-500.0,0.00016438,2]
[335216981,1723987842532,-500.0,0.00016438,2]
[335216982,1723987842541,-521.95790595,0.00016438,2]
[335216983,1723987842557,-500.0,0.00016438,2]
[335216984,1723987842566,-500.0,0.00016438,2]
[335216985,1723987842576,-500.0,0.00016438,2]
[335216986,1723987842586,-500.0,0.00016438,2]
[335216988,1723987842596,-500.0,0.00016438,2]
[335216989,1723987842606,-500.0,0.00016438,2]
[335216990,1723987842616,-500.0,0.00016438,2]
[335216991,1723987842626,-500.0,0.00016438,2]
[335216992,1723987842635,-503.86934896,0.00016438,2]
[335216993,1723987842645,-500.0,0.00016438,2]
[335216995,1723987842655,-615.89160897,0.00016438,2]
[335216996,1723987842665,-608.88,0.00016438,2]
[335216997,1723987842674,-500.0,0.00016438,2]
[335216998,1723987842684,-503.12940545,0.00016438,2]
[335216999,1723987842694,-500.0,0.00016438,2]
[335217000,1723987842703,-500.0,0.00016438,2]
[335217002,1723987842713,-500.0,0.00016438,2]
[335217003,1723987842722,-500.0,0.00016438,2]
[335217004,1723987842732,-500.0,0.00016438,2]
[335217005,1723987842742,-500.0,0.00016438,2]
[335217006,1723987842752,-500.0,0.00016438,2]
[335217007,1723987842762,-500.0,0.00016438,2]
[335217008,1723987842771,-500.0,0.00016438,2]